bitfinex-derivatives/quotes_BTCF0:USTF0_20241221
["timestamp","ask_amount","ask_price","bid_price","bid_amount"]
[1734769288400,8.109e-05,98755.0,98754.0,0.050648]
[1734769288985,8.109e-05,98755.0,98751.0,0.004]
[1734769289182,8.109e-05,98755.0,98751.0,0.007]
[1734769289489,4e-05,98752.0,98751.0,0.007]
[1734769289791,0.05069,98752.0,98739.0,0.0152]
[1734769289983,0.05065,98750.0,98739.0,0.0152]
[1734769290188,4e-05,98740.0,98739.0,0.0152]
[1734769290389,4e-05,98740.0,98731.0,0.00151903]
[1734769290585,0.3608,98735.0,98731.0,0.00151903]
[1734769290790,4e-05,98732.0,98731.0,0.00151903]
[1734769291190,4e-05,98732.0,98729.0,8e-05]
[1734769291599,4e-05,98730.0,98729.0,8e-05]
[1734769293187,0.00504,98730.0,98729.0,8e-05]
[1734769293805,0.01404,98730.0,98729.0,0.00108]
[1734769296897,0.01512804,98730.0,98729.0,0.00108]
[1734769299599,0.050666,98719.0,98708.0,0.411472]
[1734769299900,0.3608,98718.0,98711.0,0.05067]
[1734769300203,0.00135964,98715.0,98711.0,0.05067]
[1734769300399,0.00135964,98715.0,98709.0,9.514e-05]
[1734769300601,0.00135964,98715.0,98713.0,0.050669]
[1734769300794,0.00135964,98715.0,98714.0,0.0845]
[1734769301791,0.00249544,98715.0,98714.0,0.0845]
[1734769302005,0.00249544,98715.0,98714.0,0.12091388]
[1734769302399,0.00763124,98715.0,98714.0,0.12091388]
[1734769303002,0.01176704,98715.0,98714.0,0.12091388]
[1734769303505,0.00190284,98715.0,98714.0,0.12091388]
[1734769303809,0.01490284,98715.0,98714.0,0.17158288]
[1734769306705,0.01493325,98715.0,98714.0,0.17158288]
[1734769309804,0.01493325,98715.0,98714.0,0.18678288]
[1734769311503,0.01493325,98715.0,98714.0,0.54758288]
[1734769313003,0.01493325,98715.0,98714.0,0.53238288]
[1734769314105,0.01493325,98715.0,98714.0,0.44788288]
[1734769316009,0.01506876,98715.0,98714.0,0.44788288]
[1734769317305,0.01520427,98715.0,98714.0,0.411469]
[1734769317702,0.013,98715.0,98714.0,0.411469]
[1734769317913,0.01533978,98715.0,98714.0,0.411469]
[1734769318416,0.01547529,98715.0,98714.0,0.411469]
[1734769319416,0.01547529,98715.0,98714.0,0.44791933]
[1734769320715,0.0156108,98715.0,98714.0,0.44791933]
[1734769321413,0.01574631,98715.0,98714.0,0.44791933]
[1734769322018,0.01588182,98715.0,98714.0,0.44791933]
[1734769324608,0.0160171,98715.0,98714.0,0.44791933]
[1734769325023,0.01615238,98715.0,98714.0,0.44791933]
[1734769326930,0.01628766,98715.0,98714.0,0.44791933]
[1734769328025,0.01632217,98715.0,98714.0,0.44791933]
[1734769333730,0.01632217,98715.0,98714.0,0.08711933]
[1734769333933,0.0164575,98715.0,98714.0,0.08711933]
[1734769334532,0.01659283,98715.0,98714.0,0.08711933]
[1734769334929,0.01672816,98715.0,98714.0,0.08711933]
[1734769335437,0.01686349,98715.0,98714.0,0.08711933]
[1734769336031,0.01699882,98715.0,98714.0,0.08711933]
[1734769336622,0.01713415,98715.0,98714.0,0.08711933]
[1734769341039,0.01726926,98715.0,98714.0,0.08711933]
[1734769341429,0.01740437,98715.0,98714.0,0.08711933]
[1734769343133,0.013,98715.0,98714.0,0.08711933]
[1734769343340,0.01753948,98715.0,98714.0,0.08711933]
[1734769343938,0.01767459,98715.0,98714.0,0.08711933]
[1734769345126,0.01367459,98715.0,98714.0,0.08711933]
[1734769345438,0.00567459,98715.0,98714.0,0.08911933]
[1734769345635,0.00571109,98715.0,98714.0,0.08911933]
[1734769346026,0.00671109,98715.0,98714.0,0.08911933]
[1734769351441,0.00684634,98715.0,98714.0,0.08911933]
[1734769352744,0.00698159,98715.0,98714.0,0.08911933]
[1734769353938,0.00711688,98715.0,98714.0,0.08911933]
[1734769355133,0.00725217,98715.0,98714.0,0.08911933]
[1734769355944,0.00738746,98715.0,98714.0,0.08911933]
[1734769356346,0.00752275,98715.0,98714.0,0.08911933]
[1734769357737,0.00752275,98715.0,98714.0,0.052669]
[1734769358234,0.00752275,98715.0,98714.0,0.002]
[1734769358837,0.00765804,98715.0,98714.0,0.002]
[1734769359337,0.00779333,98715.0,98714.0,0.002]
[1734769359838,0.00792862,98715.0,98714.0,0.03852882]
[1734769360446,0.00806391,98715.0,98714.0,0.03852882]
[1734769361044,0.00810001,98715.0,98714.0,0.03852882]
[1734769361741,0.050671,98710.0,98679.0,0.00151993]
[1734769361961,0.050684,98685.0,98680.0,0.03654007]
[1734769362133,0.3608,98689.0,98681.0,0.050686]
[1734769362331,0.3608,98689.0,98682.0,0.03654007]
[1734769362539,0.3608,98689.0,98683.0,0.11234007]
[1734769362740,0.00610001,98695.0,98687.0,0.050682]
[1734769362943,0.00610001,98691.0,98688.0,0.03616057]
[1734769363442,0.00610001,98691.0,98684.0,0.078]
[1734769363443,0.12013431,98688.0,98684.0,0.078]
[1734769363638,0.12013431,98688.0,98685.0,0.03615102]
[1734769363834,0.12013431,98688.0,98679.0,0.00151993]
[1734769364039,0.00610001,98684.0,98680.0,0.03615206]
[1734769364936,0.00610001,98684.0,98678.0,0.06463819]
[1734769364937,0.00610001,98682.0,98681.0,0.03615206]
[1734769365138,0.00610001,98682.0,98679.0,0.03615206]
[1734769365331,0.00610001,98682.0,98680.0,0.03615206]
[1734769365535,4e-05,98680.0,98674.0,0.126489]
[1734769365736,4e-05,98680.0,98675.0,0.03612397]
[1734769366046,0.00610001,98678.0,98675.0,0.03612397]
[1734769366541,0.00623505,98677.0,98675.0,0.03612397]
[1734769367637,0.002,98678.0,98675.0,0.03612397]
[1734769367638,0.00623505,98676.0,98675.0,0.03612397]
[1734769367831,0.00637009,98676.0,98675.0,0.03612397]
[1734769369040,0.00650513,98676.0,98675.0,0.03612397]
[1734769369236,0.00650513,98676.0,98674.0,0.0758]
[1734769369437,0.002,98677.0,98675.0,0.02944775]
[1734769369837,0.001,98676.0,98675.0,0.02944775]
[1734769370334,0.002,98676.0,98674.0,0.0758]
[1734769370645,4e-05,98675.0,98674.0,0.0758]
[1734769372045,0.00204,98675.0,98674.0,0.0758]
[1734769372438,0.00204,98675.0,98649.0,0.050702]
[1734769372636,0.00204,98675.0,98667.0,0.050693]
[1734769372837,4e-05,98674.0,98670.0,0.050691]
[1734769373741,4e-05,98674.0,98661.0,0.0792]
[1734769373941,4e-05,98674.0,98671.0,0.05069]
[1734769374154,0.00204,98674.0,98671.0,0.05069]
[1734769374845,0.050693,98667.0,98659.0,9.254e-05]
[1734769375044,0.050694,98666.0,98659.0,9.254e-05]
[1734769375243,0.050691,98671.0,98659.0,9.254e-05]
[1734769375446,0.050691,98671.0,98661.0,0.050696]
[1734769375648,0.36332001,98674.0,98664.0,0.050694]
[1734769375946,0.3628,98674.0,98666.0,0.050693]
[1734769376146,0.3628,98674.0,98660.0,0.050696]
[1734769376456,0.05069,98672.0,98661.0,0.050696]
[1734769377847,0.050691,98671.0,98661.0,0.050696]
[1734769378244,0.002,98672.0,98661.0,0.050696]
[1734769378245,0.050692,98669.0,98661.0,0.050696]
[1734769378448,0.050692,98668.0,98661.0,0.050696]
[1734769379355,0.001,98672.0,98659.0,9.254e-05]
[1734769379556,0.001,98671.0,98663.0,0.050695]
[1734769379860,0.002,98671.0,98663.0,0.050695]
[1734769380052,0.001,98671.0,98663.0,0.050695]
[1734769380353,0.001,98668.0,98663.0,0.050695]
[1734769380754,0.002,98668.0,98663.0,0.050695]
[1734769381054,0.051691,98671.0,98663.0,0.050695]
[1734769381248,0.002,98671.0,98663.0,0.050695]
[1734769381441,0.050691,98670.0,98663.0,0.050695]
[1734769381950,0.050691,98670.0,98664.0,0.050694]
[1734769382549,0.001,98668.0,98664.0,0.050694]
[1734769382747,0.002,98668.0,98664.0,0.050694]
[1734769383144,0.050691,98670.0,98664.0,0.050694]
[1734769383350,0.052691,98670.0,98664.0,0.050694]
[1734769383951,0.001,98668.0,98664.0,0.050694]
[1734769384155,0.002,98668.0,98664.0,0.050694]
[1734769385555,0.050691,98670.0,98664.0,0.050694]
[1734769385556,0.052691,98670.0,98664.0,0.050694]
[1734769386158,0.001,98668.0,98664.0,0.050694]
[1734769386349,0.002,98668.0,98664.0,0.050694]
[1734769386857,0.002,98668.0,98665.0,0.050694]
[1734769387057,0.001,98668.0,98665.0,0.050694]
[1734769387257,0.050692,98669.0,98661.0,0.050696]
[1734769387553,0.002,98670.0,98661.0,0.050696]
[1734769387554,0.050692,98668.0,98661.0,0.050696]
[1734769387760,0.050692,98668.0,98664.0,0.050694]
[1734769388762,0.052692,98668.0,98664.0,0.050694]
[1734769388958,0.413492,98668.0,98664.0,0.050694]
[1734769389365,0.412492,98668.0,98664.0,0.050694]
[1734769390267,0.08975722,98667.0,98664.0,0.050694]
[1734769390559,0.050693,98666.0,98665.0,0.10076014]
[1734769390763,0.08975722,98667.0,98660.0,0.050696]
[1734769390764,0.050694,98665.0,98660.0,0.050696]
[1734769391157,4e-05,98661.0,98660.0,0.050696]
[1734769391560,4e-05,98661.0,98660.0,0.15145614]
[1734769392466,0.00104,98661.0,98660.0,0.15145614]
[1734769393054,0.00204,98661.0,98660.0,0.15145614]
[1734769394865,0.00104,98661.0,98660.0,0.15145614]
[1734769395056,0.00204,98661.0,98660.0,0.15145614]
[1734769395953,0.09196451,98661.0,98660.0,0.15145614]
[1734769397266,0.00204,98661.0,98660.0,0.15145614]
[1734769397662,0.00204,98661.0,98660.0,0.10076014]
[1734769401463,0.12217431,98661.0,98660.0,0.10076014]
[1734769403164,0.00204,98661.0,98660.0,0.10076014]
[1734769406779,0.00204,98661.0,98660.0,0.13684992]
[1734769407080,0.00204,98661.0,98660.0,0.17891996]
[1734769407675,0.00204,98661.0,98660.0,0.13684992]
[1734769408179,0.00204,98661.0,98660.0,0.18754592]
[1734769411977,0.12222589,98661.0,98660.0,0.18754592]
[1734769414176,0.00204,98661.0,98660.0,0.18754592]
[1734769416188,0.12221983,98661.0,98660.0,0.18754592]
[1734769416872,0.12121983,98661.0,98660.0,0.18754592]
[1734769417178,0.00104,98661.0,98660.0,0.18754592]
[1734769418067,4e-05,98661.0,98660.0,0.18754592]
[1734769418271,0.00104,98661.0,98660.0,0.18754592]
[1734769419882,0.12120822,98661.0,98660.0,0.18754592]
[1734769421180,0.1222916,98661.0,98660.0,0.18754592]
[1734769421683,0.1212916,98661.0,98660.0,0.18754592]
[1734769421877,0.1222916,98661.0,98660.0,0.18754592]
[1734769422276,0.1212916,98661.0,98660.0,0.18754592]
[1734769422477,0.1222916,98661.0,98660.0,0.18754592]
[1734769424278,0.1212916,98661.0,98660.0,0.18754592]
[1734769424483,0.1222916,98661.0,98660.0,0.18754592]
[1734769424880,0.1212916,98661.0,98660.0,0.18754592]
[1734769425080,0.1222916,98661.0,98660.0,0.18754592]
[1734769425479,0.1212916,98661.0,98660.0,0.18754592]
[1734769425680,0.1222916,98661.0,98660.0,0.18754592]
[1734769427185,0.1222916,98661.0,98660.0,0.03608978]
[1734769427490,0.1222916,98661.0,98659.0,9.254e-05]
[1734769427491,0.050696,98660.0,98659.0,9.254e-05]
[1734769427679,0.126996,98660.0,98659.0,9.254e-05]
[1734769427987,0.127036,98660.0,98659.0,9.254e-05]
[1734769428285,0.12811938,98660.0,98659.0,9.254e-05]
[1734769428877,0.12911938,98660.0,98659.0,9.254e-05]
[1734769429491,0.27924502,98660.0,98659.0,9.254e-05]
[1734769430189,0.12911938,98660.0,98659.0,9.254e-05]
[1734769433483,0.14731309,98660.0,98659.0,9.254e-05]
[1734769434284,0.14731313,98660.0,98659.0,9.254e-05]
[1734769435786,0.12911938,98660.0,98659.0,9.254e-05]
[1734769435982,0.12911938,98660.0,98656.0,0.050698]
[1734769436188,0.00121975,98658.0,98656.0,0.050698]
[1734769436383,4e-05,98657.0,98656.0,0.050698]
[1734769436884,4e-05,98657.0,98656.0,0.18756784]
[1734769437189,4e-05,98657.0,98656.0,0.18757686]
[1734769437190,0.00125975,98657.0,98656.0,0.18757686]
[1734769437395,0.00225975,98657.0,98656.0,0.18757686]
[1734769437787,0.0922607,98657.0,98656.0,0.18757686]
[1734769437985,0.0932607,98657.0,98656.0,0.18757686]
[1734769439096,0.00325975,98657.0,98656.0,0.18757686]
[1734769441896,0.09327918,98657.0,98656.0,0.18757686]
[1734769442990,0.0934129,98657.0,98656.0,0.18757686]
[1734769444306,0.09354662,98657.0,98656.0,0.18757686]
[1734769444900,0.09356341,98657.0,98656.0,0.18757686]
[1734769447690,0.00354398,98657.0,98656.0,0.18757686]
[1734769448496,0.05424198,98657.0,98656.0,0.03611872]
[1734769448696,0.050699,98655.0,98650.0,0.3608]
[1734769448896,0.00150398,98653.0,98651.0,0.03612767]
[1734769449794,0.0786,98654.0,98651.0,0.03612767]
[1734769449990,0.00150398,98652.0,98651.0,0.03612767]
[1734769450592,0.00150649,98652.0,98651.0,0.03612767]
[1734769451293,0.00250649,98652.0,98651.0,0.03612767]
[1734769452196,0.00350649,98652.0,98651.0,0.03612767]
[1734769454793,0.00350649,98652.0,98650.0,0.412101]
[1734769454994,0.00350649,98652.0,98650.0,0.411501]
[1734769455593,0.00150649,98651.0,98650.0,0.411501]
[1734769455793,0.00150649,98651.0,98650.0,0.39692012]
[1734769457400,0.00250649,98651.0,98650.0,0.39692012]
[1734769457709,0.00350649,98651.0,98650.0,0.39692012]
[1734769458602,0.36430649,98651.0,98650.0,0.03612012]
[1734769458810,0.41500749,98651.0,98650.0,0.03612012]
[1734769459310,0.41500749,98651.0,98647.0,0.050703]
[1734769459496,0.413501,98651.0,98648.0,0.03612326]
[1734769459702,0.00150649,98649.0,98648.0,0.03612326]
[1734769460095,0.00150649,98649.0,98648.0,0.1368834]
[1734769460907,0.00250649,98649.0,98648.0,0.1368834]
[1734769461697,0.00350649,98649.0,98648.0,0.1368834]
[1734769462099,0.12355008,98649.0,98648.0,0.1368834]
[1734769462305,0.12355008,98649.0,98648.0,0.03612326]
[1734769462496,0.12355008,98649.0,98640.0,0.04207004]
[1734769462705,0.12355008,98649.0,98641.0,0.03612424]
[1734769462706,0.050705,98643.0,98641.0,0.03612424]
[1734769463006,0.050705,98643.0,98642.0,0.03612424]
[1734769463199,0.050705,98643.0,98642.0,0.03461565]
[1734769463600,0.050705,98643.0,98638.0,0.10076014]
[1734769463601,0.050705,98643.0,98639.0,0.03461565]
[1734769464095,0.059705,98643.0,98639.0,0.03461565]
[1734769464497,0.059705,98643.0,98640.0,1.36]
[1734769464697,0.063705,98643.0,98641.0,0.03461565]
[1734769465308,0.063705,98643.0,98642.0,0.03461565]
[1734769465500,0.063705,98643.0,98639.0,0.03461565]
[1734769465703,0.064705,98643.0,98639.0,1.39461565]
[1734769465901,4e-05,98640.0,98639.0,1.36]
[1734769466102,4e-05,98640.0,98639.0,0.03610304]
[1734769467310,0.00904,98640.0,98639.0,0.03610304]
[1734769468010,0.01304,98640.0,98639.0,0.03610304]
[1734769468801,0.00904,98640.0,98639.0,0.03610304]
[1734769469306,0.00104,98640.0,98639.0,0.03610304]
[1734769471310,4e-05,98640.0,98639.0,0.03610304]
[1734769471614,0.00104,98640.0,98639.0,0.03610304]
[1734769472807,4e-05,98640.0,98639.0,0.03610304]
[1734769473006,0.00104,98640.0,98639.0,0.03610304]
[1734769474912,0.00104,98640.0,98639.0,0.03608928]
[1734769475310,0.00104,98640.0,98639.0,0.03608717]
[1734769475710,0.00104,98640.0,98638.0,0.10076014]
[1734769476117,4e-05,98639.0,98638.0,0.10076014]
[1734769477716,0.00104,98639.0,98638.0,0.10076014]
[1734769478114,0.00204,98639.0,98638.0,0.10076014]
[1734769478317,0.00204,98639.0,98638.0,0.13684741]
[1734769478917,0.00104,98639.0,98638.0,0.13684741]
[1734769479121,0.00204,98639.0,98638.0,0.14184741]
[1734769479709,0.00104,98639.0,98638.0,0.14184741]
[1734769479905,0.00104,98639.0,98638.0,0.14484741]
[1734769480311,0.00104,98639.0,98638.0,0.10876014]
[1734769482712,0.12108359,98639.0,98638.0,0.10576014]
[1734769482923,0.12108359,98639.0,98638.0,0.10976014]
[1734769483218,0.12108359,98639.0,98638.0,0.009]
[1734769483524,0.12108359,98639.0,98630.0,0.34068571]
[1734769483525,0.050711,98632.0,98630.0,8.571e-05]
[1734769483707,0.0719,98631.0,98630.0,8.571e-05]
[1734769483910,0.07194,98631.0,98630.0,8.571e-05]
[1734769484725,0.1919754,98631.0,98630.0,8.571e-05]
[1734769485707,0.1210754,98631.0,98630.0,8.571e-05]
[1734769485913,0.1220754,98631.0,98630.0,8.571e-05]
[1734769486226,0.1210754,98631.0,98630.0,8.571e-05]
[1734769486413,0.1220754,98631.0,98630.0,8.571e-05]
[1734769486614,0.1221549,98631.0,98630.0,8.571e-05]
[1734769489528,0.1728659,98631.0,98630.0,8.571e-05]
[1734769492320,0.050713,98628.0,98622.0,0.050715]
[1734769492515,0.3608,98625.0,98610.0,0.42543819]
[1734769492822,0.3608,98625.0,98623.0,0.050715]
[1734769495423,0.050717,98621.0,98615.0,0.050799]
[1734769495619,0.050718,98619.0,98616.0,0.03605786]
[1734769495821,0.2269,98620.0,98616.0,0.03605786]
[1734769496025,0.2269,98620.0,98615.0,8e-05]
[1734769496026,0.2269,98620.0,98617.0,0.08677586]
[1734769496328,0.2269,98620.0,98617.0,0.050718]
[1734769497327,0.286617,98620.0,98617.0,0.050718]
[1734769497529,0.2359,98620.0,98610.0,0.47668019]
[1734769497827,0.2359,98620.0,98611.0,0.036053]
[1734769498026,0.005,98619.0,98611.0,0.036053]
[1734769498219,0.050719,98617.0,98611.0,0.036053]
[1734769499322,0.059719,98617.0,98611.0,0.036053]
[1734769499724,0.063719,98617.0,98611.0,0.036053]
[1734769500425,0.050719,98616.0,98611.0,0.036053]
[1734769500731,0.013,98617.0,98611.0,0.036053]
[1734769501029,0.013,98617.0,98616.0,0.050719]
[1734769501232,0.013,98617.0,98616.0,0.086772]
[1734769502020,0.050727,98601.0,98600.0,0.1]
[1734769502316,0.050767,98601.0,98600.0,0.1]
[1734769503421,0.050732,98591.0,98590.0,0.3608]
[1734769503621,0.050733,98589.0,98579.0,0.00052]
[1734769503928,0.050733,98589.0,98588.0,0.01426866]
[1734769503929,0.050773,98589.0,98588.0,0.01426866]
[1734769505023,4e-05,98589.0,98588.0,0.01426866]
[1734769505232,4e-05,98589.0,98588.0,0.1150288]
[1734769505430,4e-05,98589.0,98588.0,0.10086365]
[1734769505924,0.01404,98589.0,98588.0,0.10086365]
[1734769506740,0.00504,98589.0,98588.0,0.10086365]
[1734769506936,0.01404,98589.0,98588.0,0.10086365]
[1734769507637,0.00904,98589.0,98588.0,0.10086365]
[1734769507930,0.01504,98589.0,98588.0,0.10086365]
[1734769510033,0.01504,98589.0,98588.0,0.17826365]
[1734769517139,0.01504,98589.0,98588.0,0.22899665]
[1734769517535,0.00604,98589.0,98588.0,0.22899665]
[1734769517735,0.00104,98589.0,98588.0,0.22899665]
[1734769517938,0.00204,98589.0,98588.0,0.17826365]
[1734769518136,0.00104,98589.0,98588.0,0.17826365]
[1734769518335,0.00204,98589.0,98588.0,0.17826365]
[1734769518542,0.00104,98589.0,98588.0,0.17826365]
[1734769519144,4e-05,98589.0,98588.0,0.17826365]
[1734769519340,0.00104,98589.0,98588.0,0.17826365]
[1734769519748,0.00104,98589.0,98588.0,0.22899665]
[1734769520633,0.1200354,98601.0,98590.0,0.050732]
[1734769520939,0.13978725,98610.0,98608.0,0.050723]
[1734769521135,0.18019344,98620.0,98619.0,0.050717]
[1734769521340,0.18019344,98624.0,98619.0,0.3608]
[1734769521747,9.299e-05,98623.0,98619.0,0.3608]
[1734769523348,0.050717,98620.0,98611.0,0.00064]
[1734769523542,0.05072,98615.0,98609.0,0.36148]
[1734769523742,0.050722,98611.0,98609.0,0.3608]
[1734769523945,0.0766,98614.0,98609.0,0.3608]
[1734769525835,0.0766,98614.0,98609.0,0.3618]
[1734769526346,0.0766,98614.0,98609.0,0.3628]
[1734769526746,0.0766,98614.0,98611.0,0.050721]
[1734769528246,0.050722,98611.0,98609.0,0.3618]
[1734769528754,4e-05,98610.0,98609.0,0.3618]
[1734769529144,4e-05,98610.0,98609.0,0.3608]
[1734769529654,4e-05,98610.0,98609.0,0.3618]
[1734769530055,4e-05,98610.0,98609.0,0.3638]
[1734769531052,4e-05,98610.0,98609.0,0.3628]
[1734769531251,4e-05,98610.0,98609.0,0.3648]
[1734769532156,4e-05,98610.0,98609.0,0.3628]
[1734769532358,4e-05,98610.0,98609.0,0.3648]
[1734769534251,9.299e-05,98623.0,98622.0,0.050716]
[1734769534450,9.299e-05,98623.0,98622.0,1.771516]
[1734769534652,9.299e-05,98623.0,98622.0,0.411516]
[1734769535152,0.0788,98647.0,98622.0,1.7208]
[1734769535356,0.050705,98644.0,98633.0,0.05071]
[1734769535556,0.050705,98644.0,98632.0,0.3608]
[1734769535760,0.050705,98644.0,98635.0,0.050709]
[1734769536251,0.00012467,98643.0,98635.0,0.050709]
[1734769537050,0.00012467,98643.0,98633.0,0.001]
[1734769537253,0.00012467,98643.0,98641.0,0.3608]
[1734769538556,0.00912467,98643.0,98641.0,0.3618]
[1734769538866,0.01412467,98643.0,98641.0,0.412506]
[1734769540462,0.01412467,98643.0,98641.0,0.3618]
[1734769540664,0.01412467,98643.0,98641.0,0.001]
[1734769541253,0.01412467,98643.0,98642.0,0.050706]
[1734769542661,0.00512467,98643.0,98642.0,0.050706]
[1734769542862,0.01412467,98643.0,98642.0,0.051706]
[1734769545771,0.01412467,98643.0,98637.0,0.050708]
[1734769546166,4e-05,98638.0,98637.0,0.050708]
[1734769547469,4e-05,98638.0,98637.0,0.051708]
[1734769547865,0.00904,98638.0,98637.0,0.051708]
[1734769549067,0.01304,98638.0,98637.0,0.051708]
[1734769549573,0.00012467,98643.0,98642.0,0.050706]
[1734769549771,0.0786,98662.0,98658.0,0.050697]
[1734769550078,0.0786,98662.0,98659.0,8e-05]
[1734769550374,0.3608,98660.0,98659.0,8e-05]
[1734769550574,0.050706,98641.0,98637.0,0.001]
[1734769550878,4e-05,98638.0,98635.0,0.050709]
[1734769551267,4e-05,98636.0,98635.0,0.050709]
[1734769552178,4e-05,98636.0,98635.0,0.051709]
[1734769552470,0.00204,98636.0,98635.0,0.051709]
[1734769553277,0.00204,98636.0,98635.0,0.001]
[1734769553672,0.00204,98636.0,98629.0,0.01524]
[1734769553673,0.00404,98636.0,98629.0,0.01524]
[1734769553878,0.00404,98636.0,98629.0,0.065952]
[1734769554069,4e-05,98630.0,98629.0,0.065952]
[1734769555569,4e-05,98630.0,98629.0,0.066952]
[1734769560075,4e-05,98630.0,98629.0,0.067952]
[1734769560573,4e-05,98630.0,98629.0,0.071952]
[1734769560773,4e-05,98630.0,98629.0,0.072952]
[1734769560970,0.3608,98643.0,98642.0,0.050706]
[1734769562077,0.3618,98643.0,98642.0,0.050706]
[1734769562878,0.001,98643.0,98642.0,0.050706]
[1734769569994,0.001,98643.0,98642.0,0.053706]
[1734769570293,0.0734,98654.0,98652.0,0.0507]
[1734769572587,0.0734,98654.0,98652.0,0.0517]
[1734769594606,0.11963804,98656.0,98655.0,0.050699]
[1734769594802,0.11963804,98656.0,98655.0,0.411499]
[1734769595699,4.065e-05,98659.0,98658.0,0.050697]
[1734769596693,0.11963804,98663.0,98662.0,0.050695]
[1734769596904,0.11963804,98664.0,98662.0,0.050695]
[1734769597107,0.11963804,98664.0,98663.0,0.3608]
[1734769597803,0.11963804,98672.0,98664.0,0.050694]
[1734769598003,0.004,98664.0,98663.0,0.411495]
[1734769598319,0.00604,98664.0,98663.0,0.411495]
[1734769598497,0.00204,98664.0,98663.0,0.411495]
[1734769598695,0.00604,98664.0,98663.0,0.411495]
[1734769599208,0.11963804,98674.0,98673.0,0.05069]
[1734769599393,0.14968401,98682.0,98673.0,0.05069]
[1734769599394,0.14968401,98682.0,98673.0,0.41149]
[1734769599593,0.14968401,98682.0,98681.0,0.411486]
[1734769599800,0.17965424,98691.0,98690.0,0.050681]
[1734769600004,0.17965424,98691.0,98690.0,0.411481]
[1734769600204,0.17965424,98691.0,98690.0,0.411561]
[1734769600399,0.0731,98706.0,98690.0,0.411561]
[1734769600602,0.0731,98706.0,98705.0,0.050673]
[1734769600795,0.0731,98706.0,98705.0,0.050753]
[1734769601303,0.17965424,98707.0,98705.0,0.050753]
[1734769601703,0.0746,98719.0,98706.0,8e-05]
[1734769602113,0.0746,98719.0,98712.0,8e-05]
[1734769602305,0.0746,98719.0,98718.0,0.050667]
[1734769602607,0.36132001,98725.0,98724.0,0.050663]
[1734769602805,0.3608,98725.0,98724.0,0.050663]
[1734769603004,0.3608,98725.0,98724.0,0.050743]
[1734769603906,0.1526,98740.0,98724.0,0.065943]
[1734769604214,0.0746,98740.0,98739.0,0.050736]
[1734769605107,0.0876,98740.0,98739.0,0.050736]
[1734769605819,0.0876,98740.0,98739.0,0.051736]
[1734769606708,0.0876,98740.0,98733.0,0.3608]
[1734769606909,0.050663,98726.0,98724.0,8e-05]
[1734769607214,0.5061,98725.0,98724.0,8e-05]
[1734769607799,0.4346,98725.0,98724.0,8e-05]
[1734769608399,0.4376,98725.0,98724.0,8e-05]
[1734769608613,0.4386,98725.0,98724.0,8e-05]
[1734769610414,0.4386,98725.0,98722.0,0.050664]
[1734769610415,0.4386,98725.0,98712.0,0.3608]
[1734769610808,4e-05,98713.0,98712.0,0.41147]
[1734769612006,4e-05,98713.0,98712.0,0.41347]
[1734769613614,4e-05,98713.0,98712.0,0.41547]
[1734769620306,4e-05,98713.0,98681.0,0.050685]
[1734769620307,0.36084,98713.0,98701.0,0.0015196]
[1734769620506,0.3608,98705.0,98683.0,0.050684]
[1734769620715,0.05068,98693.0,98680.0,0.14921545]
[1734769620912,4e-05,98684.0,98682.0,0.050685]
[1734769621226,0.0778,98692.0,98685.0,0.050683]
[1734769621405,0.0778,98692.0,98680.0,0.09852945]
[1734769621606,0.050681,98691.0,98685.0,0.050683]
[1734769622008,0.077,98690.0,98686.0,0.050683]
[1734769622325,0.0778,98692.0,98691.0,0.05068]
[1734769623307,0.3608,98696.0,98695.0,0.050678]
[1734769623512,0.36140001,98705.0,98704.0,0.050674]
[1734769623513,0.00060001,98705.0,98704.0,0.050674]
[1734769623820,0.3608,98717.0,98716.0,0.050668]
[1734769624021,0.1524,98719.0,98716.0,1.36]
[1734769624322,0.1524,98719.0,98718.0,0.050667]
[1734769625222,0.3608,98731.0,98713.0,1.7208]
[1734769625406,0.3608,98731.0,98730.0,0.05066]
[1734769627121,0.002,98731.0,98730.0,0.05066]
[1734769627918,0.008,98731.0,98730.0,0.05066]
[1734769628927,0.050664,98724.0,98712.0,0.050669]
[1734769629118,0.3608,98720.0,98704.0,0.3608]
[1734769629518,0.050667,98718.0,98704.0,0.050674]
[1734769629713,0.050667,98718.0,98706.0,0.050673]
[1734769629914,0.3608,98720.0,98706.0,0.050673]
[1734769630310,0.050672,98707.0,98697.0,0.050677]
[1734769630522,0.198673,98706.0,98697.0,0.050677]
[1734769630718,4e-05,98698.0,98697.0,0.050677]
[1734769631412,4e-05,98698.0,98697.0,0.055677]
[1734769631618,4e-05,98698.0,98697.0,0.005]
[1734769632011,0.00104,98698.0,98697.0,0.009]
[1734769633226,0.3608,98710.0,98697.0,0.013]
[1734769633427,0.51076145,98720.0,98709.0,0.050671]
[1734769633629,0.51016144,98720.0,98711.0,0.05067]
[1734769634419,0.3608,98720.0,98711.0,0.05067]
[1734769634932,0.412466,98720.0,98713.0,0.050669]
[1734769635121,0.412466,98720.0,98706.0,1.36052]
[1734769635122,0.412466,98720.0,98715.0,0.050668]
[1734769635425,0.412466,98720.0,98705.0,8e-05]
[1734769635426,0.3618,98720.0,98705.0,8e-05]
[1734769635625,0.050668,98715.0,98709.0,0.050671]
[1734769637024,0.45988946,98720.0,98709.0,0.050671]
[1734769637224,0.050666,98719.0,98709.0,0.051671]
[1734769637429,0.45988946,98720.0,98709.0,0.051671]
[1734769637626,0.45932945,98720.0,98709.0,0.052671]
[1734769637822,0.3608,98720.0,98713.0,0.050668]
[1734769638024,0.3608,98720.0,98718.0,0.050666]
[1734769638228,0.3658,98720.0,98718.0,0.050666]
[1734769638531,0.3678,98720.0,98718.0,0.050666]
[1734769639029,0.3678,98720.0,98710.0,0.09852945]
[1734769639614,0.3628,98720.0,98710.0,0.09852945]
[1734769639814,0.3678,98720.0,98710.0,0.09852945]
[1734769640018,0.3678,98720.0,98718.0,0.050666]
[1734769640427,0.3638,98720.0,98718.0,0.050666]
[1734769640631,0.3628,98720.0,98718.0,0.050666]
[1734769641919,0.3618,98720.0,98718.0,0.050666]